[Event "Lueneburger Schachfestival GM 2019"]
[Site "Lueneburg"]
[Date "2019.08.04"]
[Round "3.2"]
[White "Parvanyan, Ashot"]
[Black "Sriram, Jha"]
[Result "1/2-1/2"]
[ECO "D73"]
[WhiteElo "2423"]
[BlackElo "2381"]
[Annotator "ChessBase"]
[PlyCount "47"]
[EventDate "2019.08.02"]
[EventType "tourn"]
[EventCountry "GER"]
[SourceTitle "playchess.com"]
[Source "ChessBase"]
[SourceQuality "1"]
[TimeControl "40/5400+30:1800+30"]

1. Nf3 {[%emt 0:00:00]} d5 {[%emt 0:01:01]} 2. d4 {[%emt 0:00:00]} Nf6 {[%emt 0:00:33]} 3. c4 {[%emt 0:00:07]} c6 {[%emt 0:01:31]} 4. g3 {[%emt 0:00:46]} g6 {[%emt 0:08:14]} 5. Bg2 {[%emt 0:00:45]} Bg7 {[%emt 0:00:09]} 6. O-O {[%emt 0:00:12]} dxc4 {[%emt 0:01:30]} 7. a4 {[%emt 0:00:34]} Ne4 {[%emt 0:00:37]} 8. Qc2 {[%emt 0:01:12]} Nd6 {[%emt 0:00:07]} 9. e4 {[%emt 0:00:11]} Na6 {[%emt 0:09:40]} 10. Na3 {[%emt 0:02:52]} Nb4 {[%emt 0:03:08]} 11. Qe2 {[%emt 0:00:28]} Nd3 {[%emt 0:09:32]} 12. Rd1 {[%emt 0:24:42]} O-O {[%emt 0:05:37]} 13. e5 {[%emt 0:00:55]} Nxc1 {[%emt 0:02:52]} 14. Raxc1 {[%emt 0:00:19]} Nf5 {[%emt 0:00:49]} 15. g4 {[%emt 0:06:23]} Nh6 {[%emt 0:01:09]} 16. h3 {[%emt 0:00:10]} Qa5 {[%emt 0:08:34]} 17. Nxc4 {[%emt 0:05:14]} Qxa4 {[%emt 0:02:27]} 18. Ra1 {[%emt 0:02:25]} Qb4 {[%emt 0:08:34]} 19. Qc2 {[%emt 0:02:08]} Be6 {[%emt 0:06:38]} 20. Ra4 {[%emt 0:21:48]} Qb5 {[%emt 0:00:06]} 21. Nfd2 {[%emt 0:09:11]} Rfd8 {[%emt 0:06:11]} 22. Ra5 {[%emt 0:00:17]} Qb4 {[%emt 0:00:02]} 23. Ra4 {[%emt 0:01:02]} Qb5 {[%emt 0:00:01]} 24. Ra5 {[%emt 0:00:08]} 1/2-1/2

[Event "Lueneburger Schachfestival GM 2019"]
[Site "Lueneburg"]
[Date "2019.08.04"]
[Round "3.3"]
[White "Wachinger, Nikolas"]
[Black "Ovsejevitsch, Sergei"]
[Result "0-1"]
[ECO "A21"]
[WhiteElo "2318"]
[BlackElo "2590"]
[Annotator "ChessBase"]
[PlyCount "70"]
[EventDate "2019.08.02"]
[EventType "tourn"]
[EventCountry "GER"]
[SourceTitle "playchess.com"]
[Source "ChessBase"]
[SourceQuality "1"]
[TimeControl "40/5400+30:1800+30"]

1. c4 {[%emt 0:00:00]} e5 {[%emt 0:01:46]} 2. Nc3 {[%emt 0:00:01]} Bb4 {[%emt 0:00:50]} 3. Nd5 {[%emt 0:00:35]} Bc5 {[%emt 0:00:43]} 4. e3 {[%emt 0:05:19]} c6 {[%emt 0:12:07]} 5. d4 {[%emt 0:12:31]} cxd5 {[%emt 0:12:11]} 6. dxc5 {[%emt 0:00:08]} Qa5+ {[%emt 0:00:12]} 7. Qd2 {[%emt 0:03:47]} Qxc5 {[%emt 0:01:04]} 8. b4 {[%emt 0:00:36]} Qe7 {[%emt 0:10:41]} 9. cxd5 {[%emt 0:03:14]} Nf6 {[%emt 0:01:33]} 10. d6 {[%emt 0:09:15]} Qe6 {[%emt 0:00:14]} 11. Ba3 {[%emt 0:00:14]} O-O {[%emt 0:02:40]} 12. Rc1 {[%emt 0:01:27]} b6 {[%emt 0:06:44]} 13. Bc4 {[%emt 0:06:28]} Qg4 {[%emt 0:04:12]} 14. f3 {[%emt 0:01:43]} Qg6 {[%emt 0:00:27]} 15. Bb2 {[%emt 0:01:55]} Nc6 {[%emt 0:03:30]} 16. b5 {[%emt 0:05:17]} Na5 {[%emt 0:01:40]} 17. Bxe5 {[%emt 0:02:53]} Nxc4 {[%emt 0:00:31]} 18. Rxc4 {[%emt 0:00:03]} Re8 {[%emt 0:05:31]} 19. Bxf6 {[%emt 0:10:08]} Qxf6 {[%emt 0:01:35]} 20. Ne2 {[%emt 0:01:05]} a6 {[%emt 0:02:05]} 21. O-O {[%emt 0:09:13]} axb5 {[%emt 0:00:25]} 22. Rf4 {[%emt 0:00:22]} Qg5 {[%emt 0:10:30]} 23. Ng3 {[%emt 0:07:54]} Re5 {[%emt 0:01:51]} 24. Ne4 {[%emt 0:03:00]} Rd5 {[%emt 0:05:54]} 25. Qc3 {[%emt 0:00:48]} Qe5 {[%emt 0:01:07]} 26. Qc7 {[%emt 0:00:57]} Qe8 {[%emt 0:00:43]} 27. Rc1 {[%emt 0:00:56]} f5 {[%emt 0:02:03]} 28. Nf2 {[%emt 0:07:40]} Qxe3 {[%emt 0:02:53]} 29. g3 {[%emt 0:00:08]} Bb7 {[%emt 0:02:06]} 30. Kg2 {[%emt 0:04:05]} Rd2 {[%emt 0:01:06]} 31. Rf1 {[%emt 0:00:02]} Bc6 {[%emt 0:01:17]} 32. a3 {[%emt 0:01:21]} h6 {[%emt 0:01:26]} 33. Rxf5 {[%emt 0:00:41]} Kh7 {[%emt 0:00:18]} 34. Kg1 {[%emt 0:02:02]} Rxa3 {[%emt 0:00:59]} 35. Qd8 {[%emt 0:00:21]} Ra1 {[%emt 0:01:00]} 0-1

[Event "Lueneburger Schachfestival GM 2019"]
[Site "Lueneburg"]
[Date "2019.08.04"]
[Round "3.4"]
[White "Korley, Kassa"]
[Black "Koellner, Ruben Gideon"]
[Result "1-0"]
[ECO "A46"]
[WhiteElo "2437"]
[BlackElo "2315"]
[Annotator "ChessBase"]
[PlyCount "120"]
[EventDate "2019.08.02"]
[EventType "tourn"]
[EventCountry "GER"]
[SourceTitle "playchess.com"]
[Source "ChessBase"]
[SourceQuality "1"]
[TimeControl "40/5400+30:1800+30"]

1. d4 {[%emt 0:00:00]} Nf6 {[%emt 0:00:00]} 2. Nf3 {[%emt 0:00:00]} e6 {[%emt 0:00:14]} 3. g3 {[%emt 0:00:00]} d5 {[%emt 0:00:13]} 4. Bg2 {[%emt 0:00:00]} b5 {[%emt 0:01:08]} 5. O-O {[%emt 0:00:00]} Nbd7 {[%emt 0:01:12]} 6. b3 {[%emt 0:01:22]} Bb7 {[%emt 0:00:32]} 7. Nbd2 {[%emt 0:03:36]} b4 {[%emt 0:06:23]} 8. a3 {[%emt 0:00:04]} a5 {[%emt 0:00:04]} 9. Bb2 {[%emt 0:00:05]} Be7 {[%emt 0:02:25]} 10. Ne5 {[%emt 0:01:22]} Nxe5 {[%emt 0:07:00]} 11. dxe5 {[%emt 0:00:02]} Nd7 {[%emt 0:01:26]} 12. axb4 {[%emt 0:00:31]} axb4 {[%emt 0:00:24]} 13. f4 {[%emt 0:05:38]} f5 {[%emt 0:07:14]} 14. exf6 {[%emt 0:10:13]} Bxf6 {[%emt 0:10:35]} 15. Bxf6 {[%emt 0:00:03]} Qxf6 {[%emt 0:02:21]} 16. Rxa8+ {[%emt 0:00:05]} Bxa8 {[%emt 0:00:04]} 17. Qa1 {[%emt 0:00:44]} O-O {[%emt 0:06:46]} 18. Qxf6 {[%emt 0:00:23]} gxf6 {[%emt 0:00:37]} 19. Ra1 {[%emt 0:00:03]} Bb7 {[%emt 0:07:35]} 20. Ra7 {[%emt 0:00:10]} Nc5 {[%emt 0:01:45]} 21. Ra5 {[%emt 0:00:14]} Na6 {[%emt 0:05:31]} 22. f5 {[%emt 0:01:53]} Kf7 {[%emt 0:05:26]} 23. e4 {[%emt 0:07:24]} c6 {[%emt 0:06:02]} 24. fxe6+ {[%emt 0:03:36]} Kxe6 {[%emt 0:00:06]} 25. exd5+ {[%emt 0:00:06]} cxd5 {[%emt 0:00:11]} 26. Rb5 {[%emt 0:01:02]} Rb8 {[%emt 0:01:13]} 27. Rb6+ {[%emt 0:00:04]} Ke7 {[%emt 0:01:08]} 28. Bf1 {[%emt 0:05:24]} Nc5 {[%emt 0:06:17]} 29. Rxb4 {[%emt 0:00:04]} Rc8 {[%emt 0:00:13]} 30. Rh4 {[%emt 0:01:31]} Rh8 {[%emt 0:00:31]} 31. Bg2 {[%emt 0:01:39]} Kd6 {[%emt 0:01:18]} 32. Rh6 {[%emt 0:00:33]} Nd7 {[%emt 0:00:29]} 33. Bh3 {[%emt 0:00:26]} Bc8 {[%emt 0:01:03]} 34. Kf2 {[%emt 0:01:56]} Ke7 {[%emt 0:00:47]} 35. Nf3 {[%emt 0:00:54]} Ne5 {[%emt 0:02:21]} 36. Bxc8 {[%emt 0:07:29]} Rxc8 {[%emt 0:00:06]} 37. Rxh7+ {[%emt 0:00:09]} Kd6 {[%emt 0:00:23]} 38. Nd4 {[%emt 0:00:47]} Nc6 {[%emt 0:04:52]} 39. Nf5+ {[%emt 0:00:41]} Ke5 {[%emt 0:01:44]} 40. Rh5 {[%emt 0:01:28]} Ke6 {[%emt 0:01:46]} 41. Ke3 {[%emt 0:30:16]} Ne5 {[%emt 0:35:13]} 42. Nd4+ {[%emt 0:00:07]} Kf7 {[%emt 0:00:05]} 43. Kd2 {[%emt 0:02:18]} Kg6 {[%emt 0:00:30]} 44. Rf5 {[%emt 0:01:19]} Rh8 {[%emt 0:02:52]} 45. h4 {[%emt 0:00:02]} Kf7 {[%emt 0:00:20]} 46. Ne2 {[%emt 0:00:39]} Ke6 {[%emt 0:00:22]} 47. Rf4 {[%emt 0:47:08]} Rg8 {[%emt 0:00:33]} 48. Ra4 {[%emt 0:00:00]} Kf5 {[%emt 0:00:50]} 49. Ra5 {[%emt 0:00:00]} Ke4 {[%emt 0:00:39]} 50. Ra4+ {[%emt 0:00:00]} Kf5 {[%emt 0:00:14]} 51. Rf4+ {[%emt 0:00:00]} Ke6 {[%emt 0:00:05]} 52. h5 {[%emt 0:00:00]} Rg5 {[%emt 0:01:02]} 53. Rf1 {[%emt 0:00:00]} Nf7 {[%emt 0:00:53]} 54. Nf4+ {[%emt 0:00:00]} Kd6 {[%emt 0:00:21]} 55. Ng6 {[%emt 0:00:00]} Ke6 {[%emt 0:00:34]} 56. Nf8+ {[%emt 0:00:00]} Ke7 {[%emt 0:00:33]} 57. Nh7 {[%emt 0:00:00]} Rxh5 {[%emt 0:00:29]} 58. Nxf6 {[%emt 0:00:00]} Rh2+ {[%emt 0:01:07]} 59. Kc1 {[%emt 0:00:00]} Ke6 {[%emt 0:00:13]} 60. Nxd5 {[%emt 0:00:00]} Kxd5 {[%emt 0:00:14]} 1-0

[Event "Lueneburger Schachfestival GM 2019"]
[Site "Lueneburg"]
[Date "2019.08.04"]
[Round "3.5"]
[White "Polster, Christian"]
[Black "Vorobiov, Evgeny E."]
[Result "0-1"]
[ECO "A48"]
[WhiteElo "2254"]
[BlackElo "2578"]
[Annotator "ChessBase"]
[PlyCount "48"]
[EventDate "2019.08.02"]
[EventType "tourn"]
[EventCountry "GER"]
[SourceTitle "playchess.com"]
[Source "ChessBase"]
[SourceQuality "1"]
[TimeControl "40/5400+30:1800+30"]

1. d4 {[%emt 0:00:00]} Nf6 {[%emt 0:00:00]} 2. Nf3 {[%emt 0:00:25]} g6 {[%emt 0:01:37]} 3. Bf4 {[%emt 0:00:24]} Bg7 {[%emt 0:00:07]} 4. e3 {[%emt 0:01:05]} d6 {[%emt 0:00:17]} 5. h3 {[%emt 0:00:19]} O-O {[%emt 0:00:06]} 6. Be2 {[%emt 0:00:20]} b6 {[%emt 0:01:31]} 7. O-O {[%emt 0:01:28]} Bb7 {[%emt 0:00:05]} 8. c4 {[%emt 0:01:15]} c5 {[%emt 0:02:57]} 9. Nc3 {[%emt 0:02:40]} cxd4 {[%emt 0:00:52]} 10. exd4 {[%emt 0:00:18]} d5 {[%emt 0:02:59]} 11. Rc1 {[%emt 0:09:47]} dxc4 {[%emt 0:01:10]} 12. Bxc4 {[%emt 0:02:21]} Nc6 {[%emt 0:00:34]} 13. a3 {[%emt 0:11:21]} Rc8 {[%emt 0:07:37]} 14. d5 {[%emt 0:11:09]} Nb4 {[%emt 0:18:02]} 15. d6 {[%emt 0:13:11]} Rxc4 {[%emt 0:07:17]} 16. dxe7 {[%emt 0:00:57]} Qxe7 {[%emt 0:00:04]} 17. Bd6 {[%emt 0:00:22]} Bxf3 {[%emt 0:02:18]} 18. gxf3 {[%emt 0:05:17]} Qe6 {[%emt 0:00:17]} 19. Bxf8 {[%emt 0:01:18]} Bxf8 {[%emt 0:00:21]} 20. Re1 {[%emt 0:06:12]} Qxh3 {[%emt 0:02:46]} 21. Ne4 {[%emt 0:02:49]} Rxe4 {[%emt 0:01:23]} 22. Rxe4 {[%emt 0:10:31]} Nxe4 {[%emt 0:01:48]} 23. fxe4 {[%emt 0:01:06]} Nd3 {[%emt 0:01:31]} 24. Rc3 {[%emt 0:04:40]} Qh1+ {[%emt 0:00:35]} 0-1

[Event "Lueneburger Schachfestival GM 2019"]
[Site "Lueneburg"]
[Date "2019.08.05"]
[Round "4.2"]
[White "Koellner, Ruben Gideon"]
[Black "Polster, Christian"]
[Result "1/2-1/2"]
[ECO "D02"]
[WhiteElo "2315"]
[BlackElo "2254"]
[Annotator "ChessBase"]
[PlyCount "96"]
[EventDate "2019.08.02"]
[EventType "tourn"]
[EventCountry "GER"]
[SourceTitle "playchess.com"]
[Source "ChessBase"]
[SourceQuality "1"]
[TimeControl "40/5400+30:1800+30"]

1. d4 {[%emt 0:01:16]} e6 {[%emt 0:00:00]} 2. Bf4 {[%emt 0:00:40]} Nf6 {[%emt 0:00:26]} 3. e3 {[%emt 0:00:05]} c5 {[%emt 0:02:03]} 4. Nd2 {[%emt 0:00:12]} d5 {[%emt 0:04:40]} 5. c3 {[%emt 0:00:11]} Nc6 {[%emt 0:00:19]} 6. Ngf3 {[%emt 0:00:05]} Be7 {[%emt 0:01:18]} 7. Bd3 {[%emt 0:00:57]} O-O {[%emt 0:00:23]} 8. Ne5 {[%emt 0:00:19]} Qb6 {[%emt 0:18:33]} 9. Rb1 {[%emt 0:18:00]} Rd8 {[%emt 0:03:45]} 10. Qf3 {[%emt 0:01:32]} Bd7 {[%emt 0:02:49]} 11. g4 {[%emt 0:08:11]} Be8 {[%emt 0:09:15]} 12. Qh3 {[%emt 0:00:44]} g6 {[%emt 0:02:18]} 13. Ndf3 {[%emt 0:10:15]} cxd4 {[%emt 0:05:59]} 14. exd4 {[%emt 0:01:50]} Nxe5 {[%emt 0:15:09]} 15. Nxe5 {[%emt 0:01:48]} Nd7 {[%emt 0:03:54]} 16. Qe3 {[%emt 0:05:10]} Nxe5 {[%emt 0:05:07]} 17. Bxe5 {[%emt 0:00:06]} f6 {[%emt 0:03:21]} 18. Bg3 {[%emt 0:03:52]} Bf7 {[%emt 0:08:25]} 19. h4 {[%emt 0:09:12]} e5 {[%emt 0:05:56]} 20. dxe5 {[%emt 0:05:26]} d4 {[%emt 0:00:22]} 21. cxd4 {[%emt 0:03:30]} Qxd4 {[%emt 0:01:25]} 22. Qxd4 {[%emt 0:02:50]} Rxd4 {[%emt 0:00:02]} 23. Be2 {[%emt 0:03:07]} Bxa2 {[%emt 0:01:20]} 24. Rc1 {[%emt 0:01:33]} Bd5 {[%emt 0:01:52]} 25. O-O {[%emt 0:00:24]} fxe5 {[%emt 0:00:31]} 26. Rfd1 {[%emt 0:04:45]} Bc6 {[%emt 0:01:51]} 27. Bxe5 {[%emt 0:03:40]} Re4 {[%emt 0:00:28]} 28. Re1 {[%emt 0:01:57]} Bb4 {[%emt 0:01:34]} 29. Bc3 {[%emt 0:00:13]} Bxc3 {[%emt 0:00:20]} 30. Rxc3 {[%emt 0:00:14]} Rae8 {[%emt 0:00:48]} 31. Bc4+ {[%emt 0:04:17]} Kg7 {[%emt 0:00:14]} 32. Rxe4 {[%emt 0:00:36]} Rxe4 {[%emt 0:00:02]} 33. f3 {[%emt 0:00:09]} Rd4 {[%emt 0:00:47]} 34. b3 {[%emt 0:02:12]} h5 {[%emt 0:01:07]} 35. Be2 {[%emt 0:01:23]} Rd2 {[%emt 0:00:34]} 36. Re3 {[%emt 0:00:41]} hxg4 {[%emt 0:00:30]} 37. fxg4 {[%emt 0:00:09]} Rb2 {[%emt 0:00:18]} 38. Bf3 {[%emt 0:01:54]} Bxf3 {[%emt 0:00:25]} 39. Rxf3 {[%emt 0:00:01]} b5 {[%emt 0:00:46]} 40. h5 {[%emt 0:02:58]} a5 {[%emt 0:00:25]} 41. hxg6 {[%emt 0:32:34]} b4 {[%emt 0:05:04]} 42. Rf5 {[%emt 0:00:00]} Ra2 {[%emt 0:10:17]} 43. Rb5 {[%emt 0:00:00]} Kxg6 {[%emt 0:00:28]} 44. g5 {[%emt 0:00:00]} Rb2 {[%emt 0:06:41]} 45. Rxa5 {[%emt 0:00:00]} Rxb3 {[%emt 0:00:04]} 46. Rb5 {[%emt 0:00:00]} Rg3+ {[%emt 0:00:20]} 47. Kf2 {[%emt 0:00:00]} Rxg5 {[%emt 0:00:03]} 48. Rxb4 {[%emt 0:00:00]} Rf5+ {[%emt 0:00:11]} 1/2-1/2

[Event "Lueneburger Schachfestival GM 2019"]
[Site "Lueneburg"]
[Date "2019.08.05"]
[Round "4.4"]
[White "Sriram, Jha"]
[Black "Wachinger, Nikolas"]
[Result "1/2-1/2"]
[ECO "E14"]
[WhiteElo "2381"]
[BlackElo "2318"]
[Annotator "ChessBase"]
[PlyCount "27"]
[EventDate "2019.08.02"]
[EventType "tourn"]
[EventCountry "GER"]
[SourceTitle "playchess.com"]
[Source "ChessBase"]
[SourceQuality "1"]
[TimeControl "40/5400+30:1800+30"]

1. Nf3 {[%emt 0:01:15]} d5 {[%emt 0:00:00]} 2. d4 {[%emt 0:02:28]} Nf6 {[%emt 0:00:00]} 3. c4 {[%emt 0:00:11]} e6 {[%emt 0:00:00]} 4. e3 {[%emt 0:00:12]} b6 {[%emt 0:01:09]} 5. Nc3 {[%emt 0:00:22]} Bb7 {[%emt 0:03:44]} 6. cxd5 {[%emt 0:00:34]} exd5 {[%emt 0:05:00]} 7. Bb5+ {[%emt 0:00:06]} c6 {[%emt 0:00:51]} 8. Bd3 {[%emt 0:00:03]} Bd6 {[%emt 0:00:28]} 9. O-O {[%emt 0:00:07]} Nbd7 {[%emt 0:00:34]} 10. e4 {[%emt 0:02:32]} Nxe4 {[%emt 0:05:06]} 11. Nxe4 {[%emt 0:00:45]} dxe4 {[%emt 0:00:07]} 12. Bxe4 {[%emt 0:00:03]} O-O {[%emt 0:15:58]} 13. Bg5 {[%emt 0:11:05]} Be7 {[%emt 0:02:44]} 14. Bxe7 {[%emt 0:09:02]} 1/2-1/2

[Event "Lueneburger Schachfestival GM 2019"]
[Site "Lueneburg"]
[Date "2019.08.06"]
[Round "5.1"]
[White "Parvanyan, Ashot"]
[Black "Reuker, Jari"]
[Result "1-0"]
[ECO "E05"]
[WhiteElo "2423"]
[BlackElo "2403"]
[Annotator "NA"]
[PlyCount "88"]
[EventDate "2019.08.02"]
[EventType "tourn"]
[EventCountry "GER"]
[SourceTitle "playchess.com"]
[Source "ChessBase"]
[SourceQuality "1"]
[TimeControl "40/5400+30:1800+30"]

1. Nf3 {[%emt 0:00:00]} d5 {[%emt 0:01:20]} 2. d4 {[%emt 0:00:00]} Nf6 {[%emt 0:00:07]} 3. c4 {[%emt 0:00:00]} e6 {[%emt 0:00:05]} 4. g3 {[%emt 0:00:00]} Be7 {[%emt 0:00:19]} 5. Bg2 {[%emt 0:00:10]} O-O {[%emt 0:00:08]} 6. O-O {[%emt 0:00:27]} dxc4 {[%emt 0:00:06]} 7. Qc2 {[%emt 0:00:04]} b6 {[%emt 0:00:21]} 8. Bg5 $11 {[%emt 0:08:30]} Nd5 {[%emt 0:00:11]} 9. Bxe7 {[%emt 0:01:23]} Qxe7 {[%emt 0:00:06]} 10. Qxc4 {[%emt 0:09:07]} Ba6 {[%emt 0:00:21]} 11. Qc2 {[%emt 0:00:17]} Nd7 {[%emt 0:00:33]} 12. Nc3 {[%emt 0:11:42]} Nxc3 {[%emt 0:00:29]} 13. bxc3 {[%emt 0:00:52]} c5 {[%emt 0:00:59]} 14. Ne5 {[%emt 0:18:29]} Rac8 {[%emt 0:02:43]} 15. Nc6 {[%emt 0:03:01]} Qd6 {[%emt 0:14:29]} 16. Qa4 {[%emt 0:00:19]} Bxe2 {[%emt 0:04:05]} 17. Rfe1 {[%emt 0:06:00]} Bh5 {[%emt 0:22:47]} 18. Nxa7 {[%emt 0:10:04]} Rce8 {[%emt 0:12:05]} 19. Qc6 {[%emt 0:07:22]} Qxc6 {[%emt 0:06:03]} 20. Nxc6 {[%emt 0:00:08]} Bg6 {[%emt 0:11:52]} 21. d5 {[%emt 0:04:20]} exd5 {[%emt 0:09:19]} 22. Ne7+ {[%emt 0:00:18]} Kh8 {[%emt 0:00:13]} 23. Nxg6+ {[%emt 0:00:45]} hxg6 {[%emt 0:00:27]} 24. Bxd5 {[%emt 0:00:08]} Kg8 {[%emt 0:04:03]} 25. Bc6 {[%emt 0:02:34]} Rd8 {[%emt 0:05:31]} 26. Rab1 {[%emt 0:07:30]} Nb8 {[%emt 0:00:20]} 27. Bb5 {[%emt 0:01:07]} Rd6 {[%emt 0:01:05]} 28. Rbd1 {[%emt 0:04:17]} Rf6 {[%emt 0:00:02]} 29. g4 {[%emt 0:00:36]} Rc8 {[%emt 0:00:47]} 30. g5 {[%emt 0:01:32]} Rf5 {[%emt 0:00:39]} 31. Rd6 {[%emt 0:02:00]} Rxg5+ {[%emt 0:00:31]} 32. Kf1 {[%emt 0:00:06]} c4 {[%emt 0:02:45]} 33. Rxb6 {[%emt 0:01:50]} Rgc5 {[%emt 0:00:18]} 34. Re8+ {[%emt 0:00:48]} Rxe8 {[%emt 0:00:10]} 35. Bxe8 {[%emt 0:00:04]} Rc8 {[%emt 0:00:18]} 36. Bb5 {[%emt 0:00:13]} Kf8 {[%emt 0:00:05]} 37. a4 {[%emt 0:00:23]} Ke7 {[%emt 0:00:28]} 38. a5 {[%emt 0:00:13]} Rd8 {[%emt 0:01:52]} 39. a6 {[%emt 0:00:23]} Nxa6 {[%emt 0:00:16]} 40. Rxa6 {[%emt 0:00:30]} Rd3 {[%emt 0:00:10]} 41. Ra3 {[%emt 0:30:12]} Rh3 {[%emt 0:30:14]} 42. Kg2 {[%emt 0:00:17]} Rh4 {[%emt 0:00:05]} 43. Ra4 {[%emt 0:00:12]} Kd6 {[%emt 0:00:32]} 44. Rxc4 {[%emt 0:00:26]} Kd5 {[%emt 0:02:41]} 1-0

[Event "Lueneburger Schachfestival GM 2019"]
[Site "Lueneburg"]
[Date "2019.08.06"]
[Round "5.2"]
[White "Wachinger, Nikolas"]
[Black "Pajeken, Jakob Leon"]
[Result "1/2-1/2"]
[ECO "C68"]
[WhiteElo "2318"]
[BlackElo "2314"]
[Annotator "NA"]
[PlyCount "152"]
[EventDate "2019.08.02"]
[EventType "tourn"]
[EventCountry "GER"]
[SourceTitle "playchess.com"]
[Source "ChessBase"]
[SourceQuality "1"]
[TimeControl "40/5400+30:1800+30"]

1. e4 {[%emt 0:00:00]} e5 {[%emt 0:00:00]} 2. Nf3 {[%emt 0:00:00]} Nc6 {[%emt 0:00:00]} 3. Bb5 {[%emt 0:00:00]} a6 {[%emt 0:00:00]} 4. Bxc6 {[%emt 0:00:00]} dxc6 {[%emt 0:00:00]} 5. O-O {[%emt 0:00:02]} Qf6 {[%emt 0:00:00]} 6. d3 {[%emt 0:00:10]} Bd6 {[%emt 0:03:54]} 7. d4 {[%emt 0:00:42]} Bg4 {[%emt 0:01:59]} 8. Nbd2 {[%emt 0:00:22]} O-O-O {[%emt 0:04:20]} 9. h3 {[%emt 0:03:53]} Bxf3 {[%emt 0:03:24]} 10. Nxf3 {[%emt 0:00:09]} h6 {[%emt 0:00:32]} 11. Nxe5 {[%emt 0:19:57]} Bxe5 {[%emt 0:01:24]} 12. Qg4+ {[%emt 0:00:15]} Kb8 {[%emt 0:00:45]} 13. dxe5 {[%emt 0:00:06]} Qxe5 {[%emt 0:01:00]} 14. Bf4 {[%emt 0:00:51]} Qe7 {[%emt 0:08:34]} 15. e5 {[%emt 0:02:53]} g5 {[%emt 0:01:10]} 16. Rad1 {[%emt 0:47:25]} f5 {[%emt 0:02:13]} 17. Rxd8+ {[%emt 0:02:27]} Qxd8 {[%emt 0:00:07]} 18. Qd1 {[%emt 0:00:12]} Ne7 {[%emt 0:03:58]} 19. Bc1 {[%emt 0:02:19]} Qd5 {[%emt 0:04:40]} 20. Qxd5 {[%emt 0:03:35]} cxd5 {[%emt 0:00:05]} 21. f4 {[%emt 0:00:11]} Rg8 {[%emt 0:00:19]} 22. Kh2 {[%emt 0:05:05]} g4 {[%emt 0:01:23]} 23. hxg4 {[%emt 0:01:25]} Rxg4 {[%emt 0:00:08]} 24. Be3 {[%emt 0:00:20]} b6 {[%emt 0:00:27]} 25. b4 {[%emt 0:00:43]} Kc8 {[%emt 0:03:36]} 26. c3 {[%emt 0:00:58]} Kd7 {[%emt 0:00:37]} 27. a4 {[%emt 0:00:34]} h5 {[%emt 0:00:54]} 28. g3 {[%emt 0:05:02]} Ng6 {[%emt 0:00:35]} 29. b5 {[%emt 0:01:06]} a5 {[%emt 0:01:47]} 30. Rd1 {[%emt 0:00:41]} Ke6 {[%emt 0:00:26]} 31. Rd4 {[%emt 0:00:14]} h4 {[%emt 0:01:31]} 32. Bf2 {[%emt 0:00:02]} hxg3+ {[%emt 0:03:30]} 33. Bxg3 {[%emt 0:00:26]} Ne7 {[%emt 0:07:57]} 34. Kg2 {[%emt 0:00:25]} Rg8 {[%emt 0:00:47]} 35. Kf3 {[%emt 0:00:48]} Rc8 {[%emt 0:04:43]} 36. Bh4 {[%emt 0:01:24]} c6 {[%emt 0:01:13]} 37. Bxe7 {[%emt 0:00:41]} Kxe7 {[%emt 0:00:07]} 38. c4 {[%emt 0:00:30]} dxc4 {[%emt 0:02:06]} 39. Rxc4 {[%emt 0:00:02]} c5 {[%emt 0:00:09]} 40. Rc1 {[%emt 0:00:15]} c4 {[%emt 0:06:43]} 41. Ke3 {[%emt 0:05:23]} Rc7 {[%emt 0:08:33]} 42. Rc2 {[%emt 0:02:27]} Ke6 {[%emt 0:01:35]} 43. Kd4 {[%emt 0:03:16]} Rd7+ {[%emt 0:00:12]} 44. Kxc4 {[%emt 0:00:11]} Rd1 {[%emt 0:00:07]} 45. Rh2 {[%emt 0:02:19]} Rc1+ {[%emt 0:00:21]} 46. Kd3 {[%emt 0:01:18]} Rd1+ {[%emt 0:00:10]} 47. Ke3 {[%emt 0:01:07]} Re1+ {[%emt 0:00:24]} 48. Kf2 {[%emt 0:00:57]} Re4 {[%emt 0:00:28]} 49. Kg3 {[%emt 0:00:10]} Re3+ {[%emt 0:01:45]} 50. Kf2 {[%emt 0:01:00]} Re4 {[%emt 0:00:09]} 51. Kf3 {[%emt 0:00:21]} Rxa4 {[%emt 0:00:11]} 52. Rd2 {[%emt 0:00:17]} Ra3+ {[%emt 0:01:29]} 53. Kg2 {[%emt 0:00:16]} Rb3 {[%emt 0:04:15]} 54. Rd6+ {[%emt 0:00:18]} Ke7 {[%emt 0:00:08]} 55. Rxb6 {[%emt 0:00:06]} Kd7 {[%emt 0:00:05]} 56. Rf6 {[%emt 0:01:54]} Rxb5 {[%emt 0:01:48]} 57. Rxf5 {[%emt 0:00:03]} Rb3 {[%emt 0:00:18]} 58. Rf6 {[%emt 0:01:18]} a4 {[%emt 0:00:26]} 59. Ra6 {[%emt 0:00:24]} a3 {[%emt 0:00:21]} 60. Kf2 {[%emt 0:03:10]} Rc3 {[%emt 0:00:44]} 61. Ke2 {[%emt 0:00:47]} Rb3 {[%emt 0:00:54]} 62. Kf2 {[%emt 0:09:25]} Rc3 {[%emt 0:00:18]} 63. Kg2 {[%emt 0:01:36]} Rb3 {[%emt 0:00:08]} 64. f5 {[%emt 0:01:17]} Rb5 {[%emt 0:01:09]} 65. e6+ {[%emt 0:00:19]} Ke7 {[%emt 0:00:17]} 66. Ra7+ {[%emt 0:00:14]} Kd6 {[%emt 0:00:37]} 67. e7 {[%emt 0:00:37]} Rb8 {[%emt 0:00:21]} 68. Kf3 {[%emt 0:01:03]} Ke5 {[%emt 0:01:10]} 69. Ra5+ {[%emt 0:02:05]} Kf6 {[%emt 0:00:08]} 70. Kg4 {[%emt 0:00:15]} Kxe7 {[%emt 0:00:38]} 71. Kg5 {[%emt 0:01:01]} Rg8+ {[%emt 0:00:12]} 72. Kf4 {[%emt 0:00:11]} Rb8 {[%emt 0:00:07]} 73. Ra6 {[%emt 0:01:14]} a2 {[%emt 0:00:17]} 74. Kg5 {[%emt 0:00:48]} Rg8+ {[%emt 0:00:06]} 75. Kf4 {[%emt 0:00:05]} Rb8 {[%emt 0:00:09]} 76. Rxa2 {[%emt 0:00:05]} Rb6 {[%emt 0:00:05]} 1/2-1/2